[Event "European Individual Women's Chess Championship 2017"]
[Site "Riga LAT"]
[Date "2017.04.21"]
[Round "10.38"]
[White "Gara, Ticia"]
[Black "Doluhanova, Evgeniya"]
[Result "1/2-1/2"]
[LiveChessVersion "1.4.8"]
[BlackElo "2287"]
[WhiteElo "2325"]
[ECO "A05"]
[TimeControl "40/5400:1800+30"]

1. Nf3 {[%clk 1:30:56]} Nf6 {[%clk 1:30:55]} 2. c4 {[%clk 1:30:52]} c5
{[%clk 1:30:38]} 3. Nc3 {[%clk 1:30:36]} g6 {[%clk 1:29:36]} 4. d4
{[%clk 1:30:09]} cxd4 {[%clk 1:29:00]} 5. Nxd4 {[%clk 1:30:33]} Bg7
{[%clk 1:29:20]} 6. e4 {[%clk 1:30:08]} O-O {[%clk 1:27:57]} 7. Be2
{[%clk 1:29:01]} Nc6 {[%clk 1:28:02]} 8. Be3 {[%clk 1:28:10]} d6 {[%clk 1:26:58]}
9. O-O {[%clk 1:27:35]} Bd7 {[%clk 1:23:46]} 10. Re1 {[%clk 1:26:21]} Ne8
{[%clk 1:20:24]} 11. Qd2 {[%clk 1:21:59]} Nc7 {[%clk 1:20:10]} 12. Rad1
{[%clk 1:15:01]} b6 {[%clk 1:03:25]} 13. Nxc6 {[%clk 1:12:28]} Bxc6
{[%clk 1:03:41]} 14. Bh6 {[%clk 1:11:37]} Qd7 {[%clk 0:47:42]} 15. Bxg7
{[%clk 1:00:01]} Kxg7 {[%clk 0:47:59]} 16. Qd4+ {[%clk 0:59:22]} f6
{[%clk 0:47:23]} 17. Nd5 {[%clk 0:56:52]} e5 {[%clk 0:46:13]} 18. Qd3
{[%clk 0:42:11]} Nxd5 {[%clk 0:35:49]} 19. cxd5 {[%clk 0:42:16]} Bb7
{[%clk 0:36:15]} 20. Qg3 {[%clk 0:33:13]} f5 {[%clk 0:30:17]} 21. exf5
{[%clk 0:31:05]} Qxf5 {[%clk 0:30:31]} 22. Bg4 {[%clk 0:16:30]} Qf4
{[%clk 0:26:44]} 23. f3 {[%clk 0:10:44]} Bc8 {[%clk 0:21:22]} 24. Qxf4
{[%clk 0:08:16]} Rxf4 {[%clk 0:21:13]} 25. Rc1 {[%clk 0:08:11]} Bxg4
{[%clk 0:15:32]} 26. fxg4 {[%clk 0:08:37]} Raf8 {[%clk 0:08:36]} 27. Rc6
{[%clk 0:08:53]} Rf2 {[%clk 0:07:41]} 28. Rxd6 {[%clk 0:07:17]} Rxb2
{[%clk 0:07:57]} 29. Rd7+ {[%clk 0:07:24]} Rf7 {[%clk 0:04:36]} 30. Rxf7+
{[%clk 0:07:22]} Kxf7 {[%clk 0:05:02]} 31. Rxe5 {[%clk 0:07:38]} Rxa2
{[%clk 0:05:07]} 32. d6 {[%clk 0:07:31]} Rd2 {[%clk 0:05:04]} 33. Re7+
{[%clk 0:07:45]} Kf6 {[%clk 0:05:22]} 34. Rxa7 {[%clk 0:06:35]} Rxd6
{[%clk 0:01:30]} 35. Rxh7 {[%clk 0:06:51]} Rd2 {[%clk 0:01:31]} 36. h3
{[%clk 0:03:32]} Kg5 {[%clk 0:01:39]} 37. Kh2 {[%clk 0:03:36]} Rb2
{[%clk 0:01:50]} 38. Rd7 {[%clk 0:01:28]} Rb3 {[%clk 0:01:25]} 39. Rd5+
{[%clk 0:01:28]} Kf4 {[%clk 0:00:46]} 40. Rd6 {[%clk 0:30:51]} Kg5
{[%clk 0:31:00]} 41. Re6 {[%clk 0:25:28]} Rb2 {[%clk 0:28:35]} 42. Re3
{[%clk 0:23:23]} Kh4 {[%clk 0:23:07]} 43. Re5 {[%clk 0:22:37]} b5
{[%clk 0:23:22]} 44. Rd5 {[%clk 0:17:05]} Rb3 {[%clk 0:22:38]} 45. Rc5
{[%clk 0:12:32]} Rb2 {[%clk 0:21:56]} 46. Rc3 {[%clk 0:12:11]} b4
{[%clk 0:15:11]} 47. Rc5 {[%clk 0:11:53]} Rb3 {[%clk 0:15:26]} 48. Rd5
{[%clk 0:06:07]} Rc3 {[%clk 0:05:51]} 49. Rd4 {[%clk 0:05:26]} b3
{[%clk 0:06:08]} 50. g3+ {[%clk 0:04:57]} Kg5 {[%clk 0:06:33]} 51. h4+
{[%clk 0:05:09]} Kf6 {[%clk 0:06:43]} 52. Rd6+ {[%clk 0:04:47]} Kf7
{[%clk 0:06:33]} 53. Rb6 {[%clk 0:04:29]} Rc2+ {[%clk 0:01:56]} 54. Kh3
{[%clk 0:04:50]} b2 {[%clk 0:02:23]} 55. g5 {[%clk 0:04:19]} Rd2 {[%clk 0:02:33]}
56. g4 {[%clk 0:03:33]} Rd3+ {[%clk 0:02:40]} 57. Kg2 {[%clk 0:03:57]} Rd2+
{[%clk 0:02:51]} 58. Kg3 {[%clk 0:03:49]} Rd3+ {[%clk 0:02:28]} 59. Kf4
{[%clk 0:04:00]} Rd4+ {[%clk 0:02:23]} 60. Ke5 {[%clk 0:02:29]} Rd2
{[%clk 0:01:02]} 61. Rb7+ {[%clk 0:02:03]} Kg8 {[%clk 0:01:08]} 62. h5
{[%clk 0:02:14]} Rf2 {[%clk 0:01:12]} 63. Ke6 {[%clk 0:01:09]} Kh8
{[%clk 0:01:04]} 64. Rb8+ {[%clk 0:00:50]} Kg7 {[%clk 0:00:38]} 65. h6+
{[%clk 0:00:42]} Kh7 {[%clk 0:01:04]} 66. Ke5 {[%clk 0:00:45]} Re2+
{[%clk 0:01:00]} 67. Kf4 {[%clk 0:00:41]} Rf2+ {[%clk 0:01:16]} 68. Ke3
{[%clk 0:00:52]} Rg2 {[%clk 0:01:06]} 69. Kf3 {[%clk 0:00:56]} Rc2
{[%clk 0:01:22]} 70. Rb7+ {[%clk 0:01:06]} Kh8 {[%clk 0:01:22]} 71. Kf4
{[%clk 0:00:40]} Re2 {[%clk 0:01:28]} 72. Kf3 {[%clk 0:00:36]} Rc2
{[%clk 0:01:43]} 73. Kf4 {[%clk 0:00:35]} Re2 {[%clk 0:01:49]} 74. h7
{[%clk 0:00:41]} Re7 {[%clk 0:00:40]} 75. Rxb2 {[%clk 0:00:54]} Kxh7
{[%clk 0:01:04]} 76. Rb5 {[%clk 0:01:08]} Kg7 {[%clk 0:01:12]} 77. Re5
{[%clk 0:01:25]} Ra7 {[%clk 0:01:34]} 78. Re6 {[%clk 0:01:42]} Ra4+
{[%clk 0:01:43]} 79. Ke5 {[%clk 0:01:57]} Ra5+ {[%clk 0:02:08]} 80. Kf4
{[%clk 0:02:23]} Ra4+ {[%clk 0:02:35]} 1/2-1/2

[Event "European Individual Women's Chess Championship 2017"]
[Site "Riga LAT"]
[Date "2017.04.21"]
[Round "10.39"]
[White "Malakhova, Elizaveta"]
[Black "Drljevic, Ljilja"]
[Result "1-0"]
[LiveChessVersion "1.4.8"]
[BlackElo "2237"]
[WhiteElo "2324"]
[ECO "C26"]
[TimeControl "40/5400:1800+30"]

1. e4 {[%clk 1:30:55]} e5 {[%clk 1:30:36]} 2. Nc3 {[%clk 1:31:00]} Nf6
{[%clk 1:30:32]} 3. g3 {[%clk 1:30:47]} Bc5 {[%clk 1:28:54]} 4. Bg2
{[%clk 1:30:47]} Nc6 {[%clk 1:27:34]} 5. Nge2 {[%clk 1:29:35]} a6
{[%clk 1:27:24]} 6. d3 {[%clk 1:28:29]} d6 {[%clk 1:27:18]} 7. h3
{[%clk 1:24:17]} O-O {[%clk 1:25:43]} 8. O-O {[%clk 1:24:09]} Be6
{[%clk 1:14:46]} 9. Kh2 {[%clk 1:22:13]} d5 {[%clk 1:12:58]} 10. Bg5
{[%clk 1:16:12]} dxe4 {[%clk 1:10:55]} 11. Nxe4 {[%clk 1:12:29]} Be7
{[%clk 1:11:04]} 12. Bxf6 {[%clk 1:11:35]} Bxf6 {[%clk 1:11:30]} 13. Nxf6+
{[%clk 1:08:37]} Qxf6 {[%clk 1:11:44]} 14. Nc3 {[%clk 1:08:06]} Rad8
{[%clk 1:04:58]} 15. f4 {[%clk 1:04:52]} exf4 {[%clk 1:04:31]} 16. Rxf4
{[%clk 1:05:14]} Qh6 {[%clk 0:58:04]} 17. Rh4 {[%clk 0:55:35]} Qg6
{[%clk 0:53:09]} 18. Qg1 {[%clk 0:50:25]} Qg5 {[%clk 0:48:22]} 19. Re1
{[%clk 0:48:00]} Rfe8 {[%clk 0:40:10]} 20. Qf2 {[%clk 0:44:46]} Qa5
{[%clk 0:28:43]} 21. Ra4 {[%clk 0:38:10]} Qh5 {[%clk 0:25:35]} 22. Rae4
{[%clk 0:36:06]} Qa5 {[%clk 0:18:05]} 23. d4 {[%clk 0:26:18]} Qb6
{[%clk 0:14:31]} 24. Na4 {[%clk 0:26:05]} Qa5 {[%clk 0:13:52]} 25. Nc5
{[%clk 0:26:00]} Rxd4 {[%clk 0:13:37]} 26. Nb3 {[%clk 0:25:38]} 1-0

[Event "European Individual Women's Chess Championship 2017"]
[Site "Riga LAT"]
[Date "2017.04.21"]
[Round "10.40"]
[White "Khomeriki, Nino"]
[Black "Gevorgyan, Maria"]
[Result "1-0"]
[LiveChessVersion "1.4.8"]
[BlackElo "2227"]
[WhiteElo "2308"]
[ECO "A05"]
[TimeControl "40/5400:1800+30"]

1. Nf3 {[%clk 1:30:51]} Nf6 {[%clk 1:30:53]} 2. g3 {[%clk 1:31:01]} e6
{[%clk 1:28:19]} 3. Bg2 {[%clk 1:31:14]} d5 {[%clk 1:28:44]} 4. c4
{[%clk 1:31:21]} Be7 {[%clk 1:29:08]} 5. b3 {[%clk 1:31:46]} d4 {[%clk 1:24:24]}
6. Bb2 {[%clk 1:31:52]} c5 {[%clk 1:24:44]} 7. e3 {[%clk 1:31:05]} Nc6
{[%clk 1:22:58]} 8. exd4 {[%clk 1:31:15]} cxd4 {[%clk 1:23:27]} 9. O-O
{[%clk 1:31:24]} O-O {[%clk 1:21:46]} 10. Re1 {[%clk 1:31:39]} Re8
{[%clk 1:21:18]} 11. a3 {[%clk 1:29:03]} a5 {[%clk 1:21:35]} 12. Ne5
{[%clk 1:28:26]} Nxe5 {[%clk 1:20:29]} 13. Rxe5 {[%clk 1:28:50]} Bd6
{[%clk 1:20:57]} 14. Bxd4 {[%clk 1:24:25]} Bxe5 {[%clk 1:19:39]} 15. Bxe5
{[%clk 1:24:45]} Nd7 {[%clk 1:19:15]} 16. Bb2 {[%clk 1:21:41]} e5
{[%clk 1:15:08]} 17. Nc3 {[%clk 1:15:54]} Nf6 {[%clk 1:14:35]} 18. Nb5
{[%clk 1:14:30]} Bg4 {[%clk 1:01:14]} 19. Qf1 {[%clk 1:08:17]} Qxd2
{[%clk 0:43:42]} 20. Bc3 {[%clk 1:06:48]} Qc2 {[%clk 0:36:05]} 21. Rc1
{[%clk 0:52:30]} Qxb3 {[%clk 0:36:22]} 22. Nc7 {[%clk 0:52:51]} Nd7
{[%clk 0:36:38]} 23. Bd2 {[%clk 0:50:20]} Bf5 {[%clk 0:32:28]} 24. c5
{[%clk 0:34:08]} Bd3 {[%clk 0:21:51]} 25. Qe1 {[%clk 0:34:05]} Ba6
{[%clk 0:17:36]} 26. c6 {[%clk 0:23:26]} bxc6 {[%clk 0:16:51]} 27. Bxc6
{[%clk 0:14:12]} Bb7 {[%clk 0:13:08]} 28. Rc3 {[%clk 0:12:41]} Qxc3
{[%clk 0:07:27]} 29. Bxc3 {[%clk 0:13:02]} Bxc6 {[%clk 0:07:56]} 30. Nxe8
{[%clk 0:10:28]} Rxe8 {[%clk 0:08:22]} 31. Bxa5 {[%clk 0:10:48]} Bf3
{[%clk 0:08:51]} 32. Qc3 {[%clk 0:09:42]} e4 {[%clk 0:08:29]} 33. Bc7
{[%clk 0:06:45]} Nf6 {[%clk 0:07:52]} 34. Qc6 {[%clk 0:02:50]} h5
{[%clk 0:07:29]} 35. a4 {[%clk 0:02:07]} Re7 {[%clk 0:07:33]} 36. Bd6
{[%clk 0:01:47]} Re6 {[%clk 0:07:59]} 37. a5 {[%clk 0:01:11]} Ne8
{[%clk 0:01:42]} 38. a6 {[%clk 0:01:37]} Rxd6 {[%clk 0:01:37]} 39. Qxe8+
{[%clk 0:02:01]} Kh7 {[%clk 0:02:06]} 40. Qa4 {[%clk 0:32:22]} Rb6
{[%clk 0:30:54]} 41. Qa1 {[%clk 0:29:30]} Rb8 {[%clk 0:31:19]} 42. a7
{[%clk 0:29:27]} Ra8 {[%clk 0:31:48]} 43. Qa5 {[%clk 0:26:10]} Kg6
{[%clk 0:28:39]} 44. Qb6+ {[%clk 0:24:49]} f6 {[%clk 0:27:56]} 45. Qb8
{[%clk 0:24:47]} e3 {[%clk 0:28:19]} 46. fxe3 {[%clk 0:25:11]} Be4
{[%clk 0:28:33]} 47. Kf2 {[%clk 0:25:06]} f5 {[%clk 0:26:49]} 48. Ke2
{[%clk 0:24:40]} Kf6 {[%clk 0:25:26]} 49. h4 {[%clk 0:23:30]} Ke6
{[%clk 0:25:00]} 50. Kd2 {[%clk 0:23:41]} Kf6 {[%clk 0:24:58]} 51. Kc3
{[%clk 0:24:03]} Kf7 {[%clk 0:25:11]} 52. Kd4 {[%clk 0:24:23]} Ke6
{[%clk 0:25:32]} 53. Kc5 {[%clk 0:23:35]} Ke7 {[%clk 0:25:10]} 54. Qc7+
{[%clk 0:21:32]} Kf6 {[%clk 0:24:54]} 55. Qd6+ {[%clk 0:21:44]} Kf7
{[%clk 0:25:08]} 56. Qd7+ {[%clk 0:22:11]} Kf8 {[%clk 0:23:01]} 57. Qd6+
{[%clk 0:21:01]} Kf7 {[%clk 0:23:10]} 58. Qb8 {[%clk 0:21:14]} Ke6
{[%clk 0:23:10]} 59. Kd4 {[%clk 0:21:35]} Kf6 {[%clk 0:23:08]} 60. Qb6+
{[%clk 0:18:06]} Kf7 {[%clk 0:22:56]} 61. Ke5 {[%clk 0:18:24]} Re8+
{[%clk 0:21:54]} 62. Kf4 {[%clk 0:18:26]} Re6 {[%clk 0:19:55]} 63. Qc7+
{[%clk 0:17:34]} Re7 {[%clk 0:17:42]} 64. Qc4+ {[%clk 0:17:37]} Kf8
{[%clk 0:16:13]} 65. Qc8+ {[%clk 0:16:48]} Re8 {[%clk 0:16:38]} 66. Qc5+
{[%clk 0:16:48]} Kf7 {[%clk 0:16:13]} 67. Kg5 {[%clk 0:16:40]} g6
{[%clk 0:08:31]} 68. Qc4+ {[%clk 0:11:34]} Re6 {[%clk 0:08:52]} 69. Kh6
{[%clk 0:08:41]} Ba8 {[%clk 0:08:35]} 70. Qb3 {[%clk 0:08:01]} Be4
{[%clk 0:08:27]} 71. Qa2 {[%clk 0:08:13]} Ba8 {[%clk 0:08:10]} 72. Qc4
{[%clk 0:08:38]} Bf3 {[%clk 0:07:51]} 73. Qc8 {[%clk 0:07:40]} Re8
{[%clk 0:05:19]} 74. Qa6 {[%clk 0:08:01]} Rh8+ {[%clk 0:05:34]} 75. Kg5
{[%clk 0:08:26]} Rg8 {[%clk 0:05:55]} 76. Qf6+ {[%clk 0:08:40]} Ke8
{[%clk 0:05:54]} 77. Qe6+ {[%clk 0:09:06]} Kf8 {[%clk 0:06:22]} 78. Kf6
{[%clk 0:09:25]} 1-0

[Event "European Individual Women's Chess Championship 2017"]
[Site "Riga LAT"]
[Date "2017.04.21"]
[Round "10.41"]
[White "Berzina, Ilze"]
[Black "Balajayeva, Khanim"]
[Result "1/2-1/2"]
[LiveChessVersion "1.4.8"]
[BlackElo "2196"]
[WhiteElo "2297"]
[ECO "C97"]
[TimeControl "40/5400:1800+30"]

1. e4 {[%clk 1:30:56]} e5 {[%clk 1:30:53]} 2. Nf3 {[%clk 1:31:20]} Nc6
{[%clk 1:31:16]} 3. Bb5 {[%clk 1:31:41]} a6 {[%clk 1:31:43]} 4. Ba4
{[%clk 1:32:06]} Nf6 {[%clk 1:32:08]} 5. O-O {[%clk 1:32:25]} Be7
{[%clk 1:32:34]} 6. Re1 {[%clk 1:32:42]} b5 {[%clk 1:32:58]} 7. Bb3
{[%clk 1:33:07]} d6 {[%clk 1:33:20]} 8. c3 {[%clk 1:33:23]} O-O {[%clk 1:33:43]}
9. h3 {[%clk 1:33:47]} Na5 {[%clk 1:34:02]} 10. Bc2 {[%clk 1:34:09]} c5
{[%clk 1:34:28]} 11. d4 {[%clk 1:34:02]} Qc7 {[%clk 1:34:49]} 12. d5
{[%clk 1:34:02]} Bd7 {[%clk 1:33:01]} 13. b3 {[%clk 1:33:56]} Nb7
{[%clk 1:30:23]} 14. Nbd2 {[%clk 1:30:19]} a5 {[%clk 1:30:04]} 15. Nf1
{[%clk 1:25:56]} Rfc8 {[%clk 1:25:40]} 16. g4 {[%clk 1:22:19]} h5
{[%clk 1:25:01]} 17. N3h2 {[%clk 1:18:52]} hxg4 {[%clk 1:24:02]} 18. hxg4
{[%clk 1:18:55]} Nh7 {[%clk 1:23:56]} 19. Ng3 {[%clk 1:17:47]} Bg5
{[%clk 1:18:05]} 20. Kg2 {[%clk 1:11:19]} f6 {[%clk 1:12:31]} 21. Rh1
{[%clk 1:07:42]} Nd8 {[%clk 1:10:11]} 22. Nf5 {[%clk 1:02:57]} Bxc1
{[%clk 1:03:12]} 23. Qxc1 {[%clk 1:00:45]} Be8 {[%clk 1:02:42]} 24. Nf3
{[%clk 0:58:51]} Nf7 {[%clk 0:58:49]} 25. Qg1 {[%clk 0:56:50]} Nf8
{[%clk 0:44:27]} 26. Qh2 {[%clk 0:55:33]} g6 {[%clk 0:43:28]} 27. g5
{[%clk 0:45:10]} fxg5 {[%clk 0:25:21]} 28. Nh6+ {[%clk 0:24:53]} Nxh6
{[%clk 0:25:20]} 29. Qxh6 {[%clk 0:25:20]} Qg7 {[%clk 0:25:33]} 30. Nxg5
{[%clk 0:23:56]} Qxh6 {[%clk 0:23:39]} 31. Rxh6 {[%clk 0:24:24]} c4
{[%clk 0:21:46]} 32. Rh3 {[%clk 0:19:02]} cxb3 {[%clk 0:20:44]} 33. axb3
{[%clk 0:18:47]} a4 {[%clk 0:19:28]} 1/2-1/2

[Event "European Individual Women's Chess Championship 2017"]
[Site "Riga LAT"]
[Date "2017.04.21"]
[Round "10.42"]
[White "Utiatskaja, Irina"]
[Black "Daulyte, Deimante"]
[Result "0-1"]
[LiveChessVersion "1.4.8"]
[BlackElo "2443"]
[WhiteElo "2152"]
[ECO "A41"]
[TimeControl "40/5400:1800+30"]

1. d4 d6 2. Nf3 Nf6 3. c4 g6 4. Nc3 Bf5 {[%clk 0:00:00]} 5. h3 Bg7
{[%clk 0:00:00]} 6. Bf4 O-O {[%clk 0:00:08]} 7. e3 Ne4 {[%clk 0:00:00]} 8. Nxe4
Bxe4 {[%clk 0:00:00]} 9. Bd3 Bxf3 {[%clk 0:00:00]} 10. gxf3 e5 11. dxe5 dxe5
{[%clk 0:00:00]} 12. Bh2 Na6 {[%clk 0:00:00]} 13. a3 Nc5 {[%clk 0:00:08]} 14. Bc2
Qe7 {[%clk 0:00:08]} 15. Qe2 Rfd8 {[%clk 0:00:00]} 16. O-O Ne6 {[%clk 0:00:00]}
17. f4 exf4 {[%clk 0:00:00]} 18. exf4 Qf6 {[%clk 0:00:00]} 19. Be4 c6
{[%clk 0:00:00]} 20. Rab1 Bh6 {[%clk 0:00:00]} 21. b4 Bxf4 22. Bxf4 Nxf4 23. Qf3
Qh4 {[%clk 0:00:00]} 24. Rb3 Nxh3+ {[%clk 0:00:00]} 25. Qxh3 Qxe4
{[%clk 0:00:00]} 26. Qh6 Rd3 {[%clk 0:00:08]} 27. Rxd3 Qxd3 {[%clk 0:00:00]} 28.
Re1 Qxa3 {[%clk 0:00:00]} 29. Re4 a5 {[%clk 0:00:00]} 30. Kg2 Qa1
{[%clk 0:00:00]} 31. bxa5 Qg7 {[%clk 0:00:00]} 32. Qd2 Qf6 {[%clk 0:00:00]} 33.
Qh6 Rd8 {[%clk 0:00:00]} 34. Rh4 Qg7 {[%clk 0:00:00]} 35. Qe3 f5 36. Qe6+ Kf8
{[%clk 0:00:00]} 37. c5 Qd7 38. Qf6+ Kg8 {[%clk 0:00:00]} 39. Rb4 Rf8
{[%clk 0:00:00]} 40. Qe5 Rd8 {[%clk 0:00:08]} 41. Qf6 Re8 {[%clk 0:00:00]} 42.
Qb2 Qd5+ {[%clk 0:00:00]} 43. f3 Re3 {[%clk 0:00:00]} 44. Qf2 Rd3
{[%clk 0:00:00]} 45. Rb2 f4 {[%clk 0:00:00]} 46. Re2 g5 {[%clk 0:00:00]} 47. Re4
Kf7 {[%clk 0:00:00]} 48. Kf1 Rd2 {[%clk 0:00:00]} 49. Re2 Qd3 {[%clk 0:00:00]}
0-1

[Event "European Individual Women's Chess Championship 2017"]
[Site "Riga LAT"]
[Date "2017.04.21"]
[Round "10.43"]
[White "Houska, Jovanka"]
[Black "Petrenko, Svetlana"]
[Result "1-0"]
[LiveChessVersion "1.4.8"]
[BlackElo "2136"]
[WhiteElo "2397"]
[ECO "A49"]
[TimeControl "40/5400:1800+30"]

1. d4 {[%clk 1:30:57]} Nf6 {[%clk 1:30:52]} 2. Nf3 {[%clk 1:31:22]} g6
{[%clk 1:31:15]} 3. g3 {[%clk 1:31:32]} Bg7 {[%clk 1:31:32]} 4. Bg2
{[%clk 1:31:57]} d5 {[%clk 1:31:14]} 5. O-O {[%clk 1:31:56]} O-O {[%clk 1:31:33]}
6. c4 {[%clk 1:32:06]} dxc4 {[%clk 1:29:33]} 7. Na3 {[%clk 1:32:31]} c6
{[%clk 1:25:12]} 8. Nxc4 {[%clk 1:31:53]} Be6 {[%clk 1:25:23]} 9. b3
{[%clk 1:28:23]} Ne4 {[%clk 1:22:36]} 10. Bb2 {[%clk 1:22:44]} f5
{[%clk 1:22:25]} 11. e3 {[%clk 1:18:21]} Nd7 {[%clk 1:20:40]} 12. Qe2
{[%clk 1:13:33]} Qc7 {[%clk 1:10:48]} 13. Rac1 {[%clk 1:10:53]} Rae8
{[%clk 1:03:29]} 14. Rfd1 {[%clk 1:09:43]} Bd5 {[%clk 1:02:34]} 15. Ne1
{[%clk 1:02:52]} b5 {[%clk 0:58:33]} 16. Ne5 {[%clk 0:51:18]} Nxe5
{[%clk 0:56:48]} 17. dxe5 {[%clk 0:51:40]} Qb7 {[%clk 0:41:21]} 18. Nd3
{[%clk 0:47:30]} a5 {[%clk 0:34:24]} 19. f3 {[%clk 0:33:58]} Ng5 {[%clk 0:34:49]}
20. h4 {[%clk 0:33:35]} Nf7 {[%clk 0:32:54]} 21. Nf4 {[%clk 0:32:35]} Bh6
{[%clk 0:20:02]} 22. e6 {[%clk 0:22:52]} Nd6 {[%clk 0:20:21]} 23. Nxd5
{[%clk 0:18:53]} cxd5 {[%clk 0:20:50]} 24. Rc5 {[%clk 0:18:25]} f4
{[%clk 0:18:05]} 25. exf4 {[%clk 0:17:01]} Qb6 {[%clk 0:12:23]} 26. Qf2
{[%clk 0:14:15]} Nf5 {[%clk 0:09:37]} 27. Rcxd5 {[%clk 0:13:45]} Qxe6
{[%clk 0:09:54]} 28. Be5 {[%clk 0:10:55]} a4 {[%clk 0:09:08]} 29. Bf1
{[%clk 0:11:10]} axb3 {[%clk 0:09:00]} 30. Bxb5 {[%clk 0:09:50]} Ra8
{[%clk 0:04:17]} 31. axb3 {[%clk 0:10:05]} Ng7 {[%clk 0:03:12]} 32. Bc4
{[%clk 0:08:38]} Kh8 {[%clk 0:03:38]} 33. Rd7 {[%clk 0:08:07]} Qc6
{[%clk 0:02:14]} 34. Rxe7 {[%clk 0:08:26]} Rad8 {[%clk 0:02:28]} 35. Rxd8
{[%clk 0:06:14]} Rxd8 {[%clk 0:02:56]} 36. g4 {[%clk 0:04:21]} 1-0

[Event "European Individual Women's Chess Championship 2017"]
[Site "Riga LAT"]
[Date "2017.04.21"]
[Round "10.44"]
[White "Sazonova, Anastasia"]
[Black "Michna, Marta"]
[Result "1/2-1/2"]
[LiveChessVersion "1.4.8"]
[BlackElo "2389"]
[WhiteElo "2143"]
[ECO "C00"]
[TimeControl "40/5400:1800+30"]

1. e4 {[%clk 1:30:56]} e6 {[%clk 1:30:36]} 2. d4 {[%clk 1:31:19]} d5
{[%clk 1:31:03]} 3. Bd3 {[%clk 1:31:36]} Nf6 {[%clk 1:31:09]} 4. e5
{[%clk 1:31:34]} Nfd7 {[%clk 1:31:35]} 5. Ne2 {[%clk 1:31:30]} c5
{[%clk 1:27:08]} 6. c3 {[%clk 1:30:46]} Nc6 {[%clk 1:26:15]} 7. O-O
{[%clk 1:24:53]} Be7 {[%clk 1:08:05]} 8. a3 {[%clk 1:24:50]} a5 {[%clk 0:58:38]}
9. Be3 {[%clk 1:24:19]} c4 {[%clk 0:54:11]} 10. Bc2 {[%clk 1:24:04]} b5
{[%clk 0:54:31]} 11. Nd2 {[%clk 1:22:44]} Nb6 {[%clk 0:54:41]} 12. f4
{[%clk 1:19:48]} g6 {[%clk 0:54:23]} 13. g4 {[%clk 1:14:21]} Bd7 {[%clk 0:41:25]}
14. Ng3 {[%clk 1:08:29]} Qc7 {[%clk 0:39:30]} 15. f5 {[%clk 1:03:37]} O-O-O
{[%clk 0:39:02]} 16. f6 {[%clk 1:02:11]} Bf8 {[%clk 0:39:05]} 17. h4
{[%clk 0:59:14]} h6 {[%clk 0:33:11]} 18. Qe2 {[%clk 0:51:07]} Kb7
{[%clk 0:33:15]} 19. Rfb1 {[%clk 0:45:20]} Rb8 {[%clk 0:33:08]} 20. Bf2
{[%clk 0:40:49]} Kc8 {[%clk 0:31:51]} 21. Nf3 {[%clk 0:38:18]} Na7
{[%clk 0:27:24]} 22. Be1 {[%clk 0:36:13]} Bc6 {[%clk 0:24:49]} 23. Kh2
{[%clk 0:34:30]} Nd7 {[%clk 0:18:52]} 24. Kh3 {[%clk 0:30:39]} Rb7
{[%clk 0:18:12]} 25. Nf1 {[%clk 0:26:57]} Qb8 1/2-1/2

[Event "European Individual Women's Chess Championship 2017"]
[Site "Riga LAT"]
[Date "2017.04.21"]
[Round "10.45"]
[White "Arda, Cagil Irmak"]
[Black "Savina, Anastasia"]
[Result "0-1"]
[LiveChessVersion "1.4.8"]
[BlackElo "2378"]
[WhiteElo "2089"]
[ECO "B41"]
[TimeControl "40/5400:1800+30"]

1. e4 {[%clk 1:30:24]} c5 {[%clk 1:30:55]} 2. Nf3 {[%clk 1:30:45]} e6
{[%clk 1:31:19]} 3. d4 {[%clk 1:31:03]} cxd4 {[%clk 1:31:44]} 4. Nxd4
{[%clk 1:31:29]} a6 {[%clk 1:31:55]} 5. c4 {[%clk 1:31:51]} b6 {[%clk 1:31:14]}
6. a3 {[%clk 1:30:45]} Bb7 {[%clk 1:31:11]} 7. Nc3 {[%clk 1:30:58]} Qc7
{[%clk 1:30:02]} 8. Be3 {[%clk 1:30:12]} Nf6 {[%clk 1:29:07]} 9. f3
{[%clk 1:30:10]} Nc6 {[%clk 1:25:26]} 10. Be2 {[%clk 1:28:56]} Nh5
{[%clk 0:52:32]} 11. g3 {[%clk 1:16:36]} Bc5 {[%clk 0:47:18]} 12. b4
{[%clk 1:13:13]} Bxd4 {[%clk 0:42:27]} 13. Bxd4 {[%clk 1:13:36]} O-O
{[%clk 0:38:45]} 14. Bf2 {[%clk 1:06:12]} f5 {[%clk 0:37:37]} 15. O-O
{[%clk 1:02:09]} fxe4 {[%clk 0:32:13]} 16. Nxe4 {[%clk 0:56:44]} Ne5
{[%clk 0:31:20]} 17. c5 {[%clk 0:53:23]} b5 {[%clk 0:18:06]} 18. Bd4
{[%clk 0:44:28]} Bxe4 {[%clk 0:11:37]} 19. fxe4 {[%clk 0:44:50]} Nf6
{[%clk 0:12:00]} 20. Bb2 {[%clk 0:38:43]} Rad8 {[%clk 0:06:32]} 21. Qd4
{[%clk 0:37:39]} Nc6 {[%clk 0:06:49]} 22. Qe3 {[%clk 0:38:02]} e5
{[%clk 0:04:26]} 23. Rad1 {[%clk 0:37:36]} d6 {[%clk 0:02:16]} 24. Bf3
{[%clk 0:31:28]} Qa7 {[%clk 0:01:27]} 25. Rc1 {[%clk 0:29:49]} Kh8
{[%clk 0:01:27]} 26. Kh1 {[%clk 0:27:27]} Nd7 {[%clk 0:00:43]} 27. Bg4
{[%clk 0:26:32]} dxc5 {[%clk 0:00:34]} 28. Bxd7 {[%clk 0:26:49]} Qxd7
{[%clk 0:00:57]} 29. Qxc5 {[%clk 0:20:06]} Rxf1+ {[%clk 0:01:25]} 30. Rxf1
{[%clk 0:20:28]} Qe8 {[%clk 0:01:39]} 31. Rf5 {[%clk 0:16:42]} h6
{[%clk 0:01:18]} 32. Bxe5 {[%clk 0:11:21]} Kh7 {[%clk 0:01:28]} 33. Bd6
{[%clk 0:08:34]} Qxe4+ {[%clk 0:01:20]} 34. Kg1 {[%clk 0:09:00]} Nd4
{[%clk 0:00:57]} 35. Rf2 {[%clk 0:06:03]} Nf3+ {[%clk 0:00:42]} 36. Kf1
{[%clk 0:06:21]} Qd3+ {[%clk 0:00:46]} 37. Kg2 {[%clk 0:06:36]} Ne1+
{[%clk 0:01:07]} 38. Kg1 {[%clk 0:05:55]} Rxd6 {[%clk 0:01:19]} 0-1